fUST/lending_fUST_20250929
["ID","MTS","AMOUNT","RATE_DAILY","PERIOD"]
[388381931,1759138269948,-1000.0,0.00028,2]
[388381932,1759138269957,-1000.0,0.00028,2]
[388381933,1759138269967,-1000.0,0.00028,2]
[388381934,1759138269976,-231.55074852,0.00028,2]
[388381935,1759138269985,-1000.0,0.00028,30]
[388381936,1759138269995,-1084.32,0.00028,2]
[388381937,1759138270005,-500.0,0.00028022,10]
[388381938,1759138270014,-249.0,0.00028034,7]
[388381939,1759138270023,-600.0,0.00028047,2]
[388381940,1759138270032,-259.0,0.00028078,2]
[388381941,1759138270042,-908.0,0.00028111,2]
[388381942,1759138270052,-245.0,0.00028111,2]
[388381943,1759138270065,-1084.32,0.0002814,2]
[388381944,1759138270075,-347.83760222,0.00028183,2]
[388381945,1759138270085,-462.0,0.00028189,7]
[388381946,1759138270094,-533.95590105,0.00028189,2]
[388381947,1759138270104,-153.371509,0.000282,23]
[388381948,1759138270113,-480.0,0.00028219,7]
[388381949,1759138270122,-574.67,0.00028219,7]
[388381950,1759138270131,-480.0,0.00028219,7]
[388381951,1759138270141,-480.0,0.00028219,7]
[388381952,1759138270151,-520.0,0.00028219,3]
[388381953,1759138270160,-437.62677107,0.00028219,7]
[388381954,1759138270494,-480.0,0.00028219,7]
[388381955,1759138270522,-480.0,0.00028219,7]
[388381956,1759138270538,-471.52980692,0.00028219,7]
[388381957,1759138270549,-821.35,0.00028219,7]
[388381958,1759138270558,-566.08538085,0.00028219,7]
[388381959,1759138270566,-480.0,0.00028219,7]
[388381960,1759138270576,-480.0,0.00028219,7]
[388381961,1759138270584,-480.0,0.00028219,7]
[388381962,1759138270594,-480.0,0.00028219,7]
[388381963,1759138270603,-480.0,0.00028219,7]
[388381964,1759138270612,-480.0,0.00028219,7]
[388381965,1759138270622,-621.36,0.00028219,7]
[388381966,1759138270631,-480.0,0.00028219,7]
[388381967,1759138270640,-793.5,0.00028219,7]
[388381968,1759138270649,-638.48,0.00028219,7]
[388381969,1759138270658,-728.92,0.00028219,7]
[388381970,1759138270667,-680.16,0.00028219,7]
[388381971,1759138270677,-952.18,0.00028219,7]
[388381972,1759138270686,-796.01,0.00028219,7]
[388381973,1759138270695,-720.44,0.00028219,7]
[388381974,1759138270704,-480.0,0.00028219,7]
[388381975,1759138270713,-480.0,0.00028219,7]
[388381976,1759138270722,-480.0,0.00028219,7]
[388381977,1759138270731,-480.0,0.00028219,7]
[388381978,1759138270740,-934.86,0.00028219,7]
[388381979,1759138270749,-582.32,0.00028219,7]
[388381980,1759138270758,-480.0,0.00028219,7]
[388381981,1759138270767,-480.0,0.00028219,7]
[388381982,1759138270776,-480.0,0.00028219,7]
[388381983,1759138270785,-480.0,0.00028219,7]
[388381984,1759138270794,-480.0,0.00028219,7]
[388381985,1759138270803,-480.0,0.00028219,7]
[388381986,1759138270812,-1837.62,0.00028219,7]
[388381987,1759138270821,-480.0,0.00028219,7]
[388381988,1759138270830,-480.0,0.00028219,7]
[388381989,1759138270840,-807.02,0.00028219,7]
[388381990,1759138270848,-943.86,0.00028219,7]
[388381991,1759138270859,-549.09842155,0.00028219,7]
[388381992,1759138270868,-483.74801024,0.00028219,7]
[388381993,1759138270877,-480.0,0.00028219,7]
[388381994,1759138270886,-480.0,0.00028219,7]
[388381995,1759138270895,-690.73,0.00028219,7]
[388381996,1759138270904,-1027.93,0.00028219,7]
[388381997,1759138270913,-648.29,0.00028219,7]
[388381998,1759138270923,-480.0,0.00028219,7]
[388381999,1759138270932,-568.68995286,0.00028219,7]
[388382000,1759138270941,-480.0,0.00028219,7]
[388382001,1759138270950,-901.15,0.00028219,7]
[388382002,1759138270959,-480.0,0.00028219,7]
[388382003,1759138270968,-480.0,0.00028219,7]
[388382004,1759138270976,-726.93,0.00028219,7]
[388382005,1759138270985,-480.0,0.00028219,7]
[388382006,1759138270994,-528.15624669,0.00028219,7]
[388382007,1759138271004,-480.0,0.00028219,7]
[388382008,1759138271012,-480.0,0.00028219,7]
[388382009,1759138271021,-480.0,0.00028219,7]
[388382010,1759138271030,-782.1,0.00028219,7]
[388382011,1759138271040,-480.0,0.00028219,7]
[388382012,1759138271049,-480.0,0.00028219,7]
[388382013,1759138271059,-480.0,0.00028219,7]
[388382014,1759138271073,-934.3,0.00028219,7]
[388382015,1759138271083,-546.15,0.00028219,7]
[388382016,1759138271093,-707.7,0.00028219,7]
[388382017,1759138271103,-480.0,0.00028219,7]
[388382018,1759138271113,-1029.02,0.00028219,7]
[388382019,1759138271122,-525.3,0.00028219,7]
[388382020,1759138271131,-878.3,0.00028219,7]
[388382021,1759138271143,-740.3,0.00028219,7]
[388382022,1759138271151,-480.0,0.00028219,7]
[388382023,1759138271160,-480.0,0.00028219,7]
[388382024,1759138271169,-789.95,0.00028219,7]
[388382025,1759138271178,-480.0,0.00028219,7]
[388382026,1759138271189,-823.82,0.00028219,7]
[388382027,1759138271198,-943.11,0.00028219,7]
[388382028,1759138271207,-634.52,0.00028219,7]
[388382029,1759138271216,-480.0,0.00028219,7]
[388382030,1759138271225,-480.0,0.00028219,7]
[388382031,1759138271234,-480.0,0.00028219,7]
[388382032,1759138271244,-605.02,0.00028219,7]
[388382033,1759138271253,-480.0,0.00028219,7]
[388382034,1759138271262,-533.93012175,0.00028219,7]
[388382035,1759138271271,-480.0,0.00028219,7]
[388382036,1759138271280,-551.42,0.00028219,7]
[388382037,1759138271289,-480.0,0.00028219,7]
[388382038,1759138271299,-600.0,0.00028219,7]
[388382039,1759138271308,-480.0,0.00028219,7]
[388382040,1759138271317,-480.0,0.00028219,7]
[388382041,1759138271327,-480.0,0.00028219,7]
[388382042,1759138271336,-480.0,0.00028219,7]
[388382043,1759138271345,-480.0,0.00028219,7]
[388382044,1759138271355,-480.0,0.00028219,7]
[388382045,1759138271366,-265.2910514,0.00028219,7]
[388382046,1759138271375,-481.68614414,0.00028219,7]
[388382047,1759138271384,-926.52,0.00028219,7]
[388382048,1759138271394,-673.17,0.00028219,7]
[388382049,1759138271403,-201.93823017,0.00028219,7]
[388382050,1759138271412,-522.8,0.00028219,7]
[388382051,1759138271422,-480.0,0.00028219,7]
[388382052,1759138271431,-480.0,0.00028219,7]
[388382053,1759138271441,-649.72,0.00028219,7]
[388382054,1759138271450,-480.0,0.00028219,7]
[388382055,1759138271460,-980.92,0.00028219,7]
[388382056,1759138271469,-480.0,0.00028219,7]
[388382057,1759138271479,-480.0,0.00028219,7]
[388382058,1759138271488,-502.6,0.00028219,7]
[388382059,1759138271498,-735.71,0.00028219,7]
[388382060,1759138271507,-711.88,0.00028219,7]
[388382061,1759138271516,-480.0,0.00028219,7]
[388382062,1759138271526,-480.0,0.00028219,7]
[388382063,1759138271535,-502.45,0.00028219,7]
[388382064,1759138271544,-480.0,0.00028219,7]
[388382065,1759138271553,-592.04,0.00028219,7]
[388382066,1759138271562,-480.0,0.00028219,7]
[388382067,1759138271571,-480.0,0.00028219,7]
[388382068,1759138271580,-480.0,0.00028219,7]
[388382069,1759138271589,-480.0,0.00028219,7]
[388382070,1759138271598,-1846.64,0.00028219,7]
[388382071,1759138271607,-480.0,0.00028219,7]
[388382072,1759138271618,-546.39,0.00028219,7]
[388382073,1759138271628,-480.0,0.00028219,7]
[388382074,1759138271638,-492.92176985,0.00028219,7]
[388382075,1759138271649,-480.0,0.00028219,7]
[388382076,1759138271658,-829.51,0.00028219,7]
[388382077,1759138271668,-153.28025374,0.00028219,7]
[388382078,1759138271678,-1511.8,0.00028219,7]
[388382079,1759138271687,-480.0,0.00028219,7]
[388382080,1759138271696,-753.09,0.00028219,7]
[388382081,1759138271705,-480.0,0.00028219,7]
[388382082,1759138271715,-500.0,0.00028219,7]
[388382083,1759138271724,-480.0,0.00028219,7]
[388382084,1759138271734,-653.25,0.00028219,7]
[388382085,1759138271743,-500.0,0.00028219,7]
[388382086,1759138271753,-480.0,0.00028219,7]
[388382087,1759138271763,-480.0,0.00028219,7]
[388382088,1759138271772,-583.5,0.00028219,7]
[388382089,1759138271782,-480.0,0.00028219,7]
[388382090,1759138271793,-480.0,0.00028219,7]
[388382091,1759138271802,-511.12,0.00028219,7]
[388382092,1759138271812,-583.21,0.00028219,7]
[388382093,1759138271822,-480.0,0.00028219,7]
[388382094,1759138271832,-558.6,0.00028219,7]
[388382095,1759138271841,-530.29101034,0.00028219,7]
[388382096,1759138271851,-480.0,0.00028219,7]
[388382097,1759138271861,-830.73,0.00028219,7]
[388382098,1759138271871,-970.7,0.00028219,7]
[388382099,1759138271881,-610.79,0.00028219,7]
[388382100,1759138271892,-480.0,0.00028219,7]
[388382101,1759138271902,-480.0,0.00028219,7]
[388382102,1759138271911,-805.93,0.00028219,7]
[388382103,1759138271922,-944.42,0.00028219,7]
[388382104,1759138271932,-3184.82,0.00028219,7]
[388382105,1759138271943,-480.0,0.00028219,7]
[388382106,1759138271953,-593.42,0.00028219,7]
[388382107,1759138271963,-480.0,0.00028219,7]
[388382108,1759138271972,-1376.65,0.00028219,7]
[388382109,1759138271982,-680.74,0.00028219,7]
[388382110,1759138271991,-480.0,0.00028219,7]
[388382111,1759138272002,-1015.79,0.00028219,7]
[388382112,1759138272011,-480.0,0.00028219,7]
[388382113,1759138272020,-480.0,0.00028219,7]
[388382114,1759138272030,-1819.12,0.00028219,7]
[388382115,1759138272040,-1099.25,0.00028219,7]
[388382116,1759138272051,-480.0,0.00028219,7]
[388382117,1759138272061,-1051.85,0.00028219,7]
[388382118,1759138272074,-480.0,0.00028219,7]
[388382119,1759138272084,-480.0,0.00028219,7]
[388382120,1759138272094,-480.0,0.00028219,7]
[388382121,1759138272103,-480.0,0.00028219,7]
[388382122,1759138272113,-531.84,0.00028219,7]
[388382123,1759138272122,-1080.8,0.00028219,7]
[388382124,1759138272131,-817.12,0.00028219,7]
[388382125,1759138272144,-592.46,0.00028219,7]
[388382126,1759138272153,-974.55,0.00028219,7]
[388382127,1759138272162,-805.49,0.00028219,7]
[388382128,1759138272173,-480.0,0.00028219,7]
[388382129,1759138272183,-266.80394635,0.00028219,7]
[388382130,1759138272192,-480.0,0.00028219,7]
[388382131,1759138272201,-571.04,0.00028219,7]
[388382132,1759138272211,-767.3,0.00028219,7]
[388382133,1759138272220,-893.21,0.00028219,7]
[388382134,1759138272230,-2970.42,0.00028219,7]
[388382135,1759138272240,-610.35,0.00028219,7]
[388382136,1759138272249,-591.15,0.00028219,7]
[388382137,1759138272260,-2236.08,0.00028219,7]
[388382138,1759138272270,-480.0,0.00028219,7]
[388382139,1759138272281,-480.0,0.00028219,7]
[388382140,1759138272292,-480.0,0.00028219,7]
[388382141,1759138272301,-480.0,0.00028219,7]
[388382142,1759138272311,-926.52,0.00028219,7]
[388382143,1759138272320,-564.03,0.00028219,7]
[388382144,1759138272330,-480.0,0.00028219,7]
[388382145,1759138272339,-480.0,0.00028219,7]
[388382146,1759138272348,-579.61301699,0.00028219,7]
[388382147,1759138272769,-69.16454436,0.00025445,10]
[388382148,1759138273235,-589.92545564,0.00025445,10]
[388382149,1759138273245,-250.0,0.00025551,2]
[388382150,1759138273254,-250.0,0.00025551,2]
[388382151,1759138273263,-250.0,0.00025551,2]
[388382152,1759138273273,-250.0,0.00025551,2]
[388382153,1759138273283,-195.85823,0.00025566,7]
[388382154,1759138273292,-195.85823,0.00025566,7]
[388382155,1759138273301,-218.366809,0.00025566,7]
[388382156,1759138273310,-195.85823,0.00026376,7]
[388382157,1759138273319,-195.85823,0.00026376,7]
[388382158,1759138273328,-219.37,0.00026666,2]
[388382159,1759138273338,-219.37,0.00026766,2]
[388382160,1759138273347,-195.85823,0.00027,7]
[388382161,1759138273356,-195.85823,0.00027216,7]
[388382162,1759138273366,-195.85823,0.00027397,7]
[388382163,1759138273376,-398.31698301,0.00028219,7]
[388382164,1759138273385,-1523.82,0.00028219,7]
[388382165,1759138273395,-1098.47,0.00028219,7]
[388382166,1759138273404,-480.0,0.00028219,7]
[388382167,1759138273413,-480.0,0.00028219,7]
[388382168,1759138273423,-480.0,0.00028219,7]
[388382169,1759138273433,-536.8,0.00028219,7]
[388382170,1759138273443,-543.41,0.00028219,7]
[388382171,1759138273452,-948.68,0.00028219,7]
[388382172,1759138273462,-480.0,0.00028219,7]
[388382173,1759138273472,-480.0,0.00028219,7]
[388382174,1759138273482,-771.92,0.00028219,7]
[388382175,1759138273492,-785.53,0.00028219,7]
[388382176,1759138273501,-1117.74,0.00028219,7]
[388382177,1759138273511,-1547.89,0.00028219,7]
[388382178,1759138273521,-864.4,0.00028219,7]
[388382179,1759138273679,-550.14,0.00028219,7]
[388382180,1759138273689,-779.05,0.00028219,7]
[388382181,1759138273699,-480.0,0.00028219,7]
[388382182,1759138273708,-480.0,0.00028219,7]
[388382183,1759138273719,-480.0,0.00028219,7]
[388382184,1759138273728,-1973.98,0.00028219,7]
[388382185,1759138273738,-379.20137072,0.00028219,7]
[388382186,1759138273748,-480.0,0.00028219,7]
[388382187,1759138273758,-1427.44,0.00028219,7]
[388382188,1759138273768,-480.0,0.00028219,7]
[388382189,1759138273777,-954.8,0.00028219,7]
[388382190,1759138273787,-1540.07,0.00028219,7]
[388382191,1759138273796,-480.0,0.00028219,7]
[388382192,1759138273805,-798.74,0.00028219,7]
[388382193,1759138273815,-859.73,0.00028219,7]
[388382194,1759138273825,-480.0,0.00028219,7]
[388382195,1759138273835,-492.41258199,0.00028219,7]
[388382196,1759138273844,-813.1,0.00028219,7]
[388382197,1759138273854,-556.47,0.00028219,7]
[388382198,1759138273863,-877.35,0.00028219,7]
[388382199,1759138273873,-480.0,0.00028219,7]
[388382200,1759138273884,-530.15,0.00028219,7]
[388382201,1759138273894,-550.02,0.00028219,7]
[388382202,1759138273904,-480.0,0.00028219,7]
[388382203,1759138273914,-481.44,0.00028219,7]
[388382204,1759138273925,-1580.36,0.00028219,7]
[388382205,1759138273935,-883.52,0.00028219,7]
[388382206,1759138273944,-480.0,0.00028219,7]
[388382207,1759138273954,-849.11,0.00028219,7]
[388382208,1759138273964,-480.0,0.00028219,7]
[388382209,1759138273974,-694.56,0.00028219,7]
[388382210,1759138273983,-480.0,0.00028219,7]
[388382211,1759138273993,-480.0,0.00028219,7]
[388382212,1759138274007,-1386.42,0.00028219,7]
[388382213,1759138274017,-480.0,0.00028219,7]
[388382214,1759138274028,-480.0,0.00028219,7]
[388382215,1759138274037,-845.36,0.00028219,7]
[388382216,1759138274047,-2983.24,0.00028219,7]
[388382217,1759138274057,-480.0,0.00028219,7]
[388382218,1759138274071,-287.48656502,0.00028219,7]
[388382219,1759138274082,-480.0,0.00028219,7]
[388382220,1759138274092,-903.85,0.00028219,7]
[388382221,1759138274102,-480.0,0.00028219,7]
[388382222,1759138274114,-837.91,0.00028219,7]
[388382223,1759138274124,-589.27,0.00028219,7]
[388382224,1759138274134,-480.0,0.00028219,7]
[388382225,1759138274145,-480.0,0.00028219,7]
[388382226,1759138274155,-480.0,0.00028219,7]
[388382227,1759138274164,-480.0,0.00028219,7]
[388382228,1759138274176,-860.7,0.00028219,7]
[388382229,1759138274186,-821.74,0.00028219,7]
[388382230,1759138274196,-480.0,0.00028219,7]
[388382231,1759138274205,-480.0,0.00028219,7]
[388382232,1759138274214,-892.52,0.00028219,7]
[388382233,1759138274223,-480.0,0.00028219,7]
[388382234,1759138274233,-219.36670114,0.00028219,7]
[388382235,1759138274242,-505.9,0.00028219,7]
[388382236,1759138274253,-480.0,0.00028219,7]
[388382237,1759138274263,-1017.61,0.00028219,7]
[388382238,1759138274273,-480.0,0.00028219,7]
[388382239,1759138274283,-541.85,0.00028219,7]
[388382240,1759138274292,-1197.94,0.00028219,7]
[388382241,1759138274303,-203.59,0.00028219,7]
[388382242,1759138274312,-480.0,0.00028219,7]
[388382243,1759138274323,-765.58,0.00028219,7]
[388382244,1759138274333,-480.0,0.00028219,7]
[388382245,1759138274343,-480.0,0.00028219,7]
[388382246,1759138274352,-1104.12,0.00028219,7]
[388382247,1759138274362,-686.72,0.00028219,7]
[388382248,1759138274371,-480.0,0.00028219,7]
[388382249,1759138274382,-870.42,0.00028219,7]
[388382250,1759138274391,-1234.14,0.00028219,7]
[388382251,1759138274400,-728.03,0.00028219,7]
[388382252,1759138274410,-2740.82,0.00028219,7]
[388382253,1759138274420,-480.0,0.00028219,7]
[388382254,1759138274431,-749.19,0.00028219,7]
[388382255,1759138274440,-480.0,0.00028219,7]
[388382256,1759138274450,-1013.53,0.00028219,7]
[388382257,1759138274459,-480.0,0.00028219,7]
[388382258,1759138274468,-992.04,0.00028219,7]
[388382259,1759138274479,-480.0,0.00028219,7]
[388382260,1759138274488,-480.0,0.00028219,7]
[388382261,1759138274501,-480.0,0.00028219,7]
[388382262,1759138274511,-802.59,0.00028219,7]
[388382263,1759138274521,-387.58425131,0.00028219,7]
[388382264,1759138274531,-1103.84,0.00028219,7]
[388382265,1759138274540,-480.0,0.00028219,7]
[388382266,1759138274549,-1567.07,0.00028219,7]
[388382267,1759138274559,-480.0,0.00028219,7]
[388382268,1759138274569,-480.0,0.00028219,7]
[388382269,1759138274578,-480.0,0.00028219,7]
[388382270,1759138274588,-668.18,0.00028219,7]
[388382271,1759138274598,-1278.68,0.00028219,7]
[388382272,1759138274606,-480.0,0.00028219,7]
[388382273,1759138274614,-480.0,0.00028219,7]
[388382274,1759138274624,-480.0,0.00028219,7]
[388382275,1759138274633,-480.0,0.00028219,7]
[388382276,1759138274643,-480.0,0.00028219,7]
[388382277,1759138274653,-480.0,0.00028219,7]
[388382278,1759138274662,-480.0,0.00028219,7]
[388382279,1759138274673,-357.24883556,0.00028219,7]
[388382280,1759138274682,-480.0,0.00028219,7]
[388382281,1759138274692,-521.31,0.00028219,7]
[388382282,1759138274702,-480.0,0.00028219,7]
[388382283,1759138274711,-749.45,0.00028219,7]
[388382284,1759138274721,-813.07,0.00028219,7]
[388382285,1759138274730,-864.73,0.00028219,7]
[388382286,1759138274740,-812.19,0.00028219,7]
[388382287,1759138274749,-5231.52,0.00028219,7]
[388382288,1759138274759,-480.0,0.00028219,7]
[388382289,1759138274768,-733.36,0.00028219,7]
[388382290,1759138274778,-505.679891,0.00028219,7]
[388382291,1759138274787,-2052.82,0.00028219,7]
[388382292,1759138274796,-1335.61033395,0.00028219,7]
[388382293,1759138274815,-250.0,0.00025551,2]
[388382294,1759138274826,-490.57966605,0.00028219,7]
[388382295,1759138274836,-480.0,0.00028219,7]
[388382296,1759138274846,-467.86377122,0.00028219,7]
[388382297,1759138274857,-480.0,0.00028219,7]
[388382298,1759138274867,-527.52,0.00028219,7]
[388382299,1759138274877,-428.35730414,0.00028219,7]
[388382300,1759138274887,-480.0,0.00028219,7]
[388382301,1759138274897,-400.06114449,0.00028219,7]
[388382302,1759138274907,-786.21,0.00028219,7]
[388382303,1759138274917,-3665.95,0.00028219,7]
[388382304,1759138274928,-726.67,0.00028219,7]
[388382305,1759138274939,-480.0,0.00028219,7]
[388382306,1759138274949,-1212.48,0.00028219,7]
[388382307,1759138274959,-382.72254699,0.00028219,7]
[388382308,1759138274969,-480.0,0.00028219,7]
[388382309,1759138274980,-480.0,0.00028219,7]
[388382310,1759138274989,-480.0,0.00028219,7]
[388382311,1759138274998,-480.0,0.00028219,7]
[388382312,1759138275008,-1883.77,0.00028219,7]
[388382313,1759138275019,-480.0,0.00028219,7]
[388382314,1759138275029,-480.0,0.00028219,7]
[388382315,1759138275038,-721.5,0.00028219,7]
[388382316,1759138275047,-2142.96,0.00028219,7]
[388382317,1759138275056,-480.0,0.00028219,7]
[388382318,1759138275071,-528.27,0.00028219,7]
[388382319,1759138275090,-480.0,0.00028219,7]
[388382320,1759138275100,-790.29,0.00028219,7]
[388382321,1759138275109,-1205.65,0.00028219,7]
[388382322,1759138275119,-31.14556711,0.00028219,7]
[388382323,1759138321100,-168.05568648,0.00025205,2]
[388382324,1759138336779,-15.83953451,0.00025205,2]
[388382327,1759138626185,160.0,0.00024429,3]
[388382328,1759138644804,900.0,0.00025201,2]
[388382330,1759138680079,242.64,0.00018182,2]
[388382331,1759138680375,242.64,0.00018182,2]
[388382332,1759138680654,242.64,0.00018182,2]
[388382333,1759138680878,740.0,0.00025201,2]
[388382334,1759138687897,196.438212,0.00025143,2]
[388382335,1759138718822,460.458649,0.00025143,2]
[388382412,1759139432357,-160.0,0.00025368,4]
[388382414,1759139432368,-1200.0,0.00025462,2]
[388382416,1759139432379,-300.0,0.00025462,2]
[388382418,1759139432390,-1200.0,0.00025462,2]
[388382421,1759139432401,-1000.0,0.00025463,2]
[388382423,1759139432412,-1000.0,0.00025463,2]
[388382425,1759139432423,-1000.0,0.00025463,2]
[388382427,1759139432434,-1000.0,0.00025463,2]
[388382429,1759139432444,-1000.0,0.00025463,2]
[388382431,1759139432455,-1000.0,0.00025463,2]
[388382433,1759139432466,-500.0,0.00025479,2]
[388382435,1759139432477,-1000.0,0.00025536,2]
[388382438,1759139432487,-1000.0,0.00025536,2]
[388382440,1759139432498,-1000.0,0.00025536,2]
[388382442,1759139432508,-1000.0,0.00025545,2]
[388382444,1759139432520,-362.61683575,0.00025546,2]
[388382446,1759139432533,-637.38316425,0.00025546,2]
[388382447,1759139432544,-1000.0,0.00025546,2]
[388382448,1759139432555,-1000.0,0.00025546,2]
[388382449,1759139432566,-1000.0,0.00025546,2]
[388382450,1759139432577,-1000.0,0.00025546,2]
[388382451,1759139432588,-260.10806618,0.00025546,2]
[388382452,1759139432599,-236.14752044,0.00025924,2]
[388382453,1759139432615,-168.0,0.00026085,2]
[388382454,1759139432635,-168.0,0.00026119,2]
[388382455,1759139432647,-160.0,0.00026306,5]
[388382456,1759139432658,-509.55358768,0.00026651,2]
[388382457,1759139432670,-3736.82247672,0.00026651,2]
[388382458,1759139432682,-1969.11758475,0.00026651,2]
[388382459,1759139432693,-500.0,0.00026827,2]
[388382460,1759139432704,-342.12,0.0002698,10]
[388382461,1759139432715,-534.16,0.0002698,10]
[388382462,1759139432726,-445.13,0.0002698,10]
[388382463,1759139432737,-500.0,0.00026989,2]
[388382464,1759139432749,-228.59908571,0.00026989,2]
[388382465,1759139432760,-154.93447633,0.00026989,2]
[388382466,1759139432771,-500.0,0.00026989,2]
[388382467,1759139432782,-651.66110608,0.00026989,2]
[388382468,1759139432794,-500.0,0.00026989,2]
[388382469,1759139432804,-500.0,0.00026989,2]
[388382470,1759139432815,-500.0,0.00026989,2]
[388382471,1759139432826,-500.0,0.00026989,2]
[388382472,1759139432838,-500.0,0.00026989,2]
[388382473,1759139432849,-500.0,0.00026989,2]
[388382474,1759139432861,-500.0,0.00026989,2]
[388382475,1759139432872,-500.0,0.00026989,2]
[388382476,1759139432883,-199.64980138,0.00026989,2]
[388382477,1759139432894,-9323.94188649,0.0002699,2]
[388382509,1759139438330,-42614.34877191,0.0002699,2]
[388382510,1759139438343,-10202.01729535,0.0002699,2]
[388382511,1759139438356,-2668.27079199,0.0002699,2]
[388382512,1759139438383,-3668.26193271,0.0002699,2]
[388382513,1759139438395,-40854.2004299,0.00027166,2]
[388382514,1759139438406,-5062.51646569,0.00027166,2]
[388382515,1759139438418,-500.0,0.00027177,2]
[388382516,1759139438429,-20238.18293219,0.00027187,2]
[388382517,1759139438440,-443.534,0.00027195,15]
[388382518,1759139438451,-1698.49,0.00027196,2]
[388382519,1759139438462,-160.0,0.00027244,6]
[388382520,1759139438474,-572.08826976,0.00027273,2]
[388382521,1759139438484,-500.0,0.00027273,2]
[388382522,1759139438495,-500.0,0.00027273,2]
[388382523,1759139438505,-500.0,0.00027273,2]
[388382524,1759139438515,-500.0,0.00027273,2]
[388382525,1759139438526,-500.0,0.00027273,2]
[388382526,1759139438536,-507.22562962,0.00027273,2]
[388382527,1759139438546,-500.0,0.00027273,2]
[388382528,1759139438556,-500.0,0.00027273,2]
[388382529,1759139438566,-500.0,0.00027273,2]
[388382530,1759139438576,-500.0,0.00027273,2]
[388382531,1759139438586,-500.0,0.00027273,2]
[388382532,1759139438595,-502.44309903,0.00027273,2]
[388382533,1759139438606,-500.0,0.00027273,2]
[388382534,1759139438620,-500.0,0.00027273,2]
[388382535,1759139438631,-500.0,0.00027273,2]
[388382536,1759139438640,-500.0,0.00027273,2]
[388382537,1759139438652,-500.0,0.00027273,2]
[388382538,1759139438663,-500.0,0.00027273,2]
[388382539,1759139438674,-151.0,0.00027281,2]
[388382540,1759139438684,-250.0,0.00027281,2]
[388382541,1759139438695,-151.0,0.00027281,2]
[388382542,1759139438706,-151.0,0.00027281,2]
[388382543,1759139438715,-151.0,0.00027281,2]
[388382544,1759139438726,-151.0,0.00027281,2]
[388382545,1759139438736,-151.0,0.00027281,2]
[388382546,1759139438746,-151.0,0.00027281,2]
[388382547,1759139438756,-151.0,0.00027281,2]
[388382548,1759139438766,-151.43741575,0.00027281,2]
[388382549,1759139438776,-241.85039905,0.00027281,2]
[388382550,1759139438786,-189076.86641305,0.00027287,2]
[388383051,1759139586551,-162.1012186,0.00025205,2]
[388383052,1759139593120,-328.54708538,0.00025205,2]
[388383097,1759140166689,167.5081595,0.00012692,2]
[388383100,1759140267156,230.229325,0.00025018,2]
[388383104,1759140585301,1389.0,0.0002487,7]
[388383105,1759140592715,674.543525,0.00025183,2]
[388383149,1759140632582,-9.35169602,0.00025205,2]
[388383151,1759140632592,-199.28531797,0.00025879,2]